bitfinex/quotes_SOLUSD_20230120
["timestamp","ask_amount","ask_price","bid_price","bid_amount"]
[1674203611831,35.72,20.999,20.976,10.0]
[1674203612054,35.72,20.999,20.977,285.0965]
[1674203612454,10.0,20.998,20.978,10.0]
[1674203612664,10.0,20.998,20.979,35.75]
[1674203612871,10.0,20.998,20.98,10.0]
[1674203613316,20.0,20.996,20.979,35.75]
[1674203613631,10.0,20.995,20.979,35.75]
[1674203613944,10.0,20.995,20.978,45.76]
[1674203614134,20.0,20.996,20.978,45.76]
[1674203614549,20.0,20.996,20.979,0.96]
[1674203614759,20.0,20.996,20.981,10.0]
[1674203615643,18.92,20.995,20.981,10.0]
[1674203616693,10.0,21.007,20.983,10.0]
[1674203617002,23.75576951,21.005,20.984,35.74]
[1674203617218,23.75576951,21.005,20.985,20.0]
[1674203617219,35.71,21.004,20.985,20.0]
[1674203617403,35.71,21.004,20.986,10.0]
[1674203617614,59.46576951,21.004,20.986,10.0]
[1674203617823,18.92,21.003,20.987,20.0]
[1674203618033,18.92,21.003,20.988,10.0]
[1674203618244,42.67576951,21.003,20.988,10.0]
[1674203618454,42.67576951,21.003,20.988,128.4882]
[1674203620247,23.75576951,21.003,20.988,128.4882]
[1674203620576,35.7,21.009,20.99,20.51]
[1674203620789,20.0,21.008,20.991,45.73]
[1674203622579,20.0,21.008,20.992,0.96]
[1674203622782,20.0,21.008,20.994,10.0]
[1674203623512,17.0,21.007,20.994,10.0]
[1674203623734,20.96,21.006,20.994,10.0]
[1674203624045,17.96,21.005,20.994,10.0]
[1674203624255,0.96,21.004,20.994,10.0]
[1674203624476,17.96,21.005,20.994,10.0]
[1674203625416,47.32,21.03,20.994,10.0]
[1674203625417,35.69,21.015,20.994,10.0]
[1674203625612,35.69,21.017,20.996,10.0]
[1674203625932,20.0,21.016,20.997,20.0]
[1674203626122,35.69,21.015,20.997,20.0]
[1674203626547,35.69,21.015,20.998,10.0]
[1674203626976,18.92,21.014,21.0,10.0]
[1674203627823,1.92,21.014,21.0,10.0]
[1674203628044,25.67576951,21.014,20.999,125.0259]
[1674203628362,17.0,21.013,20.999,125.0259]
[1674203628672,1.92,21.012,20.999,125.0259]
[1674203629287,1.92,21.012,20.997,20.0]
[1674203629509,10.0,21.01,20.997,20.0]
[1674203629718,18.92,21.009,20.998,10.0]
[1674203630022,1.92,21.009,20.998,10.0]
[1674203631829,23.75576951,21.011,20.997,20.0]
[1674203632247,10.0,21.01,20.997,20.0]
[1674203632432,10.0,21.01,20.996,10.0]
[1674203632646,43.75576951,21.009,20.995,118.5368]
[1674203632869,10.0,21.008,20.995,118.5368]
[1674203633192,38.92,21.007,20.995,118.5368]
[1674203633385,10.0,21.006,20.991,10.0]
[1674203633591,18.92,21.005,20.991,10.0]
[1674203633811,42.67576951,21.005,20.991,10.0]
[1674203636957,20.0,21.007,20.991,10.0]
[1674203638131,20.0,21.007,20.988,273.163]
[1674203638331,18.92,21.006,20.989,10.0]
[1674203638550,10.0,21.005,20.989,10.0]
[1674203638753,18.92,21.004,20.989,10.0]
[1674203640666,55.71,21.007,20.991,10.0]
[1674203640982,20.0,21.007,20.992,35.73]
[1674203641178,20.0,21.008,20.991,45.73]
[1674203641384,10.0,21.008,20.991,45.73]
[1674203641820,10.0,21.006,20.991,45.73]
[1674203642130,18.92,21.005,20.991,10.0]
[1674203643586,18.92,21.005,20.99,20.45]
[1674203644132,18.92,21.005,20.991,10.0]
[1674203645184,1.92,21.005,20.991,10.0]
[1674203645582,17.0,21.006,20.991,10.0]
[1674203645917,17.0,21.006,20.992,36.69]
[1674203646108,17.0,21.006,20.993,10.0]
[1674203646319,17.0,21.006,20.994,35.73]
[1674203646540,17.0,21.006,20.995,10.0]
[1674203647680,20.0,21.007,20.995,10.0]
[1674203647887,20.0,21.011,20.995,10.0]
[1674203648849,0.96,21.01,20.995,10.0]
[1674203649174,35.7,21.013,21.0,20.45]
[1674203649364,35.69,21.017,21.001,10.0]
[1674203649571,20.0,21.016,21.001,10.0]
[1674203650216,20.0,21.017,21.001,10.0]
[1674203650416,10.0,21.016,21.001,10.0]
[1674203650631,10.96,21.016,21.001,10.0]
[1674203651265,0.96,21.016,21.001,10.0]
[1674203651590,0.96,21.016,21.0,10.0]
[1674203651781,0.96,21.017,21.0,10.0]
[1674203651991,17.96,21.017,21.0,10.0]
[1674203652221,10.96,21.016,21.0,10.0]
[1674203652436,17.96,21.015,21.0,10.0]
[1674203652634,0.96,21.014,21.0,10.0]
[1674203652850,35.69,21.018,21.0,30.63]
[1674203653049,20.0,21.017,21.0,30.63]
[1674203654245,55.68,21.02,21.002,10.0]
[1674203655576,17.0,21.019,21.002,10.0]
[1674203655799,21.92,21.018,21.002,10.0]
[1674203656117,35.68,21.02,21.003,19.35185992]
[1674203656331,45.67,21.028,21.005,10.0]
[1674203656645,20.0,21.027,21.006,20.96]
[1674203656841,20.0,21.027,21.01,20.45]
[1674203657174,20.0,21.027,21.01,136.3761]
[1674203657367,20.0,21.027,21.011,10.0]
[1674203657691,20.0,21.028,21.011,10.0]
[1674203657890,35.67,21.027,21.011,10.0]
[1674203658096,20.0,21.026,21.011,10.0]
[1674203658308,20.0,21.026,21.01,115.9261]
[1674203658522,28.92,21.025,21.01,115.9261]
[1674203658944,18.92,21.025,21.01,115.9261]
[1674203659154,0.96,21.025,21.01,115.9261]
[1674203659379,0.96,21.025,21.011,10.0]
[1674203659566,35.67,21.029,21.011,10.0]
[1674203659780,20.0,21.028,21.012,36.66]
[1674203660108,20.0,21.028,21.013,10.0]
[1674203660294,20.0,21.03,21.013,10.0]
[1674203660712,0.96,21.029,21.013,10.0]
[1674203660945,0.96,21.028,21.013,10.0]
[1674203661159,0.96,21.027,21.013,10.0]
[1674203661478,0.96,21.026,21.013,10.0]
[1674203661681,20.96,21.026,21.013,10.0]
[1674203661878,17.0,21.025,21.013,10.0]
[1674203663345,20.0,21.026,21.013,10.0]
[1674203663555,20.0,21.029,21.013,10.0]
[1674203663777,35.66,21.031,21.014,1.92]
[1674203663993,35.65,21.038,21.02,20.45]
[1674203664188,20.0,21.037,21.021,10.0]
[1674203664614,55.65,21.04,21.021,10.0]
[1674203664816,55.65,21.04,21.021,125.9301]
[1674203665157,55.65,21.04,21.022,0.96]
[1674203665364,35.65,21.042,21.023,0.96]
[1674203665555,35.64,21.044,21.024,35.68]
[1674203665764,10.0,21.042,21.024,35.68]
[1674203665978,35.65,21.041,21.023,10.0]
[1674203666202,10.0,21.04,21.023,10.0]
[1674203666412,35.65,21.041,21.023,10.0]
[1674203666612,35.65,21.042,21.023,10.0]
[1674203666825,20.0,21.041,21.023,10.0]
[1674203667035,20.0,21.041,21.023,45.68]
[1674203667974,18.92,21.04,21.023,45.68]
[1674203668315,20.0,21.039,21.023,45.68]
[1674203668619,18.92,21.038,21.023,45.68]
[1674203668933,20.0,21.037,21.023,45.68]
[1674203669125,17.96,21.036,21.023,45.68]
[1674203669343,0.96,21.035,21.023,45.68]
[1674203669764,0.96,21.034,21.023,45.68]
[1674203669974,0.96,21.033,21.023,10.0]
[1674203673128,0.96,21.032,21.023,10.0]
[1674203673334,17.0,21.036,21.023,10.0]
[1674203673549,0.96,21.035,21.023,45.68]
[1674203673758,20.96,21.037,21.023,45.68]
[1674203673969,4.4255,21.065,21.03,20.63]
[1674203673970,35.64,21.044,21.03,20.63]
[1674203674191,45.63,21.05,21.031,10.0]
[1674203674514,20.0,21.049,21.032,112.5205]
[1674203674917,20.0,21.05,21.032,112.5205]
[1674203675125,45.63,21.049,21.033,10.0]
[1674203675335,20.0,21.048,21.033,10.0]
[1674203675774,20.0,21.048,21.033,45.66]
[1674203675977,20.0,21.05,21.033,45.66]
[1674203676387,20.0,21.051,21.033,45.66]
[1674203677245,18.92,21.05,21.033,45.66]
[1674203677434,20.0,21.049,21.033,45.66]
[1674203677643,18.92,21.048,21.033,45.66]
[1674203678275,45.63,21.053,21.033,45.66]
[1674203678276,20.0,21.047,21.034,0.96]
[1674203678715,35.62,21.058,21.034,0.96]
[1674203678716,35.62,21.058,21.035,10.0]
[1674203678918,35.62,21.058,21.04,20.51]
[1674203679454,10.0,21.057,21.035,45.66]
[1674203679664,35.62,21.056,21.037,10.0]
[1674203679851,10.96,21.055,21.037,10.0]
[1674203680088,35.63,21.054,21.037,10.0]
[1674203680272,17.96,21.053,21.037,10.0]
[1674203680486,0.96,21.052,21.037,10.0]
[1674203680714,0.96,21.051,21.037,10.0]
[1674203681433,0.96,21.05,21.037,10.0]
[1674203684476,0.96,21.05,21.036,65.66]
[1674203684692,0.96,21.05,21.035,110.865]
[1674203685021,0.96,21.05,21.023,10.0]
[1674203685022,10.0,21.048,21.028,10.0]
[1674203685213,74.56,21.047,21.028,10.0]
[1674203685633,74.56,21.047,21.027,154.952]
[1674203685852,43.81336551,21.046,21.027,119.282]
[1674203686058,64.56,21.045,21.027,119.282]
[1674203686489,64.56,21.045,21.028,10.0]
[1674203686704,28.92,21.045,21.028,45.67]
[1674203687110,28.92,21.045,21.028,10.0]
[1674203688806,18.92,21.045,21.028,10.0]
[1674203689330,35.64,21.046,21.028,10.0]
[1674203689526,20.0,21.047,21.031,10.0]
[1674203689735,20.0,21.049,21.032,150.1377]
[1674203689949,20.0,21.049,21.033,10.0]
[1674203690374,20.0,21.051,21.033,10.0]
[1674203690702,0.96,21.05,21.033,10.0]
[1674203690887,0.96,21.049,21.033,10.0]
[1674203691101,0.96,21.049,21.035,10.0]
[1674203691741,0.96,21.049,21.036,35.66]
[1674203691952,0.96,21.049,21.037,10.0]
[1674203692271,0.96,21.049,21.04,20.63]
[1674203692675,35.62,21.056,21.04,20.63]
[1674203692891,10.0,21.057,21.041,10.0]
[1674203693089,10.0,21.058,21.041,10.0]
[1674203693300,20.0,21.057,21.041,10.0]
[1674203693526,20.0,21.057,21.041,45.65]
[1674203694061,20.0,21.057,21.041,10.0]
[1674203694262,18.92,21.056,21.041,10.0]
[1674203695421,20.0,21.057,21.042,0.96]
[1674203695632,10.0,21.06,21.041,10.0]
[1674203695948,10.0,21.058,21.043,10.0]
[1674203696153,20.0,21.057,21.043,10.0]
[1674203696802,10.96,21.056,21.041,45.65]
[1674203697013,17.96,21.055,21.04,56.28]
[1674203697212,10.96,21.054,21.04,20.63]
[1674203697418,17.96,21.053,21.04,20.63]
[1674203697634,0.96,21.052,21.04,20.63]
[1674203697843,0.96,21.051,21.04,20.63]
[1674203698047,0.96,21.05,21.04,20.63]
[1674203698473,79.31939247,21.066,21.04,20.63]
[1674203698693,35.61,21.061,21.04,56.28]
[1674203698895,0.96,21.056,21.041,10.0]
[1674203699227,10.0,21.058,21.041,10.0]
[1674203699228,20.96,21.057,21.042,35.65]
[1674203699422,20.96,21.057,21.043,10.0]
[1674203699749,10.96,21.056,21.041,45.65]
[1674203699936,17.96,21.055,21.041,10.0]
[1674203700150,0.96,21.054,21.041,10.0]
[1674203700377,0.96,21.053,21.041,10.0]
[1674203705421,17.0,21.055,21.041,10.0]
[1674203705731,17.0,21.056,21.041,10.0]
[1674203705947,1.92,21.055,21.041,10.0]
[1674203706567,45.61,21.064,21.043,10.0]
[1674203706895,45.61,21.064,21.045,10.0]
[1674203707108,10.0,21.064,21.046,35.64]
[1674203707315,10.0,21.064,21.047,20.0]
[1674203707529,10.0,21.064,21.048,10.0]
[1674203708664,98.2314,21.065,21.048,10.0]
[1674203708900,17.96,21.064,21.048,10.0]
[1674203709100,10.0,21.063,21.047,30.0]
[1674203709306,17.96,21.062,21.047,30.0]
[1674203709519,0.96,21.061,21.048,10.0]
[1674203709723,0.96,21.06,21.048,10.0]
[1674203709935,0.96,21.059,21.048,10.0]
[1674203710350,0.96,21.059,21.047,20.0]
[1674203710576,0.96,21.058,21.047,20.0]
[1674203710790,0.96,21.057,21.046,20.0]
[1674203710982,0.96,21.056,21.046,20.0]
[1674203711188,0.96,21.055,21.046,20.0]
[1674203713206,0.96,21.055,21.044,30.0]
[1674203713732,0.96,21.055,21.045,35.64]
[1674203713923,0.96,21.055,21.047,10.0]
[1674203714577,0.96,21.055,21.044,65.64]
[1674203715198,0.96,21.056,21.044,65.64]
[1674203715403,10.0,21.061,21.044,65.64]
[1674203717528,17.0,21.06,21.044,65.64]
[1674203717726,11.92,21.059,21.044,65.64]
[1674203717936,11.92,21.059,21.044,55.64]
[1674203718154,17.0,21.058,21.044,55.64]
[1674203718468,1.92,21.057,21.044,55.64]
[1674203719205,21.92,21.057,21.043,114.3625]
[1674203719398,52.62,21.056,21.043,114.3625]
[1674203719607,10.96,21.055,21.043,114.3625]
[1674203719823,10.0,21.053,21.043,114.3625]
[1674203720026,17.96,21.052,21.041,108.5794]
[1674203720353,0.96,21.051,21.041,108.5794]
[1674203720542,0.96,21.05,21.037,35.65]
[1674203720756,0.96,21.049,21.036,45.66]
[1674203720975,0.96,21.048,21.037,20.0]
[1674203721178,0.96,21.047,21.037,20.0]
[1674203721382,0.96,21.048,21.038,10.0]
[1674203721825,0.96,21.047,21.038,10.0]
[1674203722020,0.96,21.048,21.038,10.0]
[1674203722451,45.62,21.056,21.038,10.0]
[1674203722660,10.0,21.056,21.038,45.65]
[1674203723297,20.0,21.057,21.04,20.6]
[1674203723491,20.0,21.057,21.041,46.61]
[1674203723828,20.0,21.06,21.042,0.96]
[1674203724037,20.0,21.06,21.044,10.0]
[1674203724241,20.0,21.061,21.045,35.64]
[1674203724437,18.92,21.06,21.046,10.0]
[1674203724646,20.0,21.059,21.046,9.9348695]
[1674203724869,18.92,21.058,21.046,9.9348695]
[1674203725101,20.0,21.057,21.046,9.9348695]
[1674203725288,17.0,21.056,21.046,9.9348695]
[1674203726030,17.0,21.056,21.044,45.64]
[1674203726248,17.0,21.056,21.044,10.0]
[1674203728248,35.6,21.067,21.045,57.56]
[1674203728454,35.6,21.069,21.045,174.1834]
[1674203728668,35.6,21.069,21.046,10.0]
[1674203728860,10.0,21.068,21.047,35.64]
[1674203729282,45.6,21.069,21.048,10.0]
[1674203729507,35.6,21.069,21.051,10.0]
[1674203729708,43.34942552,21.07,21.051,45.63]
[1674203730127,10.0,21.068,21.051,45.63]
[1674203730331,20.0,21.067,21.051,45.63]
[1674203731073,20.0,21.071,21.052,1.92]
[1674203731286,20.0,21.071,21.053,35.63]
[1674203731495,10.0,21.073,21.054,10.0]
[1674203731713,55.6,21.072,21.054,10.0]
[1674203731930,10.0,21.071,21.054,10.0]
[1674203732119,20.0,21.07,21.054,10.0]
[1674203732331,0.96,21.069,21.054,10.0]
[1674203733068,0.96,21.071,21.054,10.0]
[1674203733284,20.0,21.072,21.054,10.0]
[1674203733496,45.6,21.071,21.054,10.0]
[1674203733703,20.0,21.07,21.054,10.0]
[1674203733928,10.0,21.069,21.054,10.0]
[1674203734126,20.0,21.068,21.054,10.0]
[1674203734339,35.59,21.075,21.054,10.0]
[1674203734666,159.88936551,21.076,21.055,56.58]
[1674203734855,116.076,21.076,21.055,56.58]
[1674203735265,116.076,21.076,21.056,110.3895]
[1674203735496,43.34942552,21.081,21.06,20.51]
[1674203735497,35.58,21.079,21.06,20.51]
[1674203735719,20.0,21.078,21.061,18.92]
[1674203736120,20.0,21.078,21.062,10.0]
[1674203736325,10.0,21.083,21.063,1.92]
[1674203736662,55.58,21.082,21.063,1.92]
[1674203736866,17.96,21.081,21.063,1.92]
[1674203737059,55.58,21.08,21.064,10.0]
[1674203737273,35.58,21.081,21.065,1.92]
[1674203737585,20.0,21.08,21.064,10.0]
[1674203737801,35.58,21.079,21.062,10.0]
[1674203738021,10.0,21.077,21.062,10.0]
[1674203738222,35.59,21.076,21.062,10.0]
[1674203738868,18.92,21.075,21.062,10.0]
[1674203739051,17.0,21.075,21.062,10.0]
[1674203739263,17.0,21.075,21.06,20.51]
[1674203739480,47.51,21.074,21.057,10.0]
[1674203739688,17.0,21.073,21.057,10.0]
[1674203739907,1.92,21.072,21.057,10.0]
[1674203740124,37.52,21.072,21.057,10.0]
[1674203740341,17.0,21.071,21.057,10.0]
[1674203740766,17.0,21.071,21.06,20.45]
[1674203740967,35.59,21.076,21.061,10.0]
[1674203741171,17.96,21.075,21.061,10.0]
[1674203741382,0.96,21.075,21.061,10.0]
[1674203741588,17.0,21.077,21.061,10.0]
[1674203741589,36.55,21.076,21.061,10.0]
[1674203741802,17.0,21.075,21.061,10.0]
[1674203742026,0.96,21.074,21.061,10.0]
[1674203742235,36.55,21.074,21.061,10.0]
[1674203742445,17.0,21.073,21.059,10.0]
[1674203742647,0.96,21.072,21.059,10.0]
[1674203743175,0.96,21.071,21.059,10.0]
[1674203743386,0.96,21.07,21.059,10.0]
[1674203743926,0.96,21.07,21.057,10.0]
[1674203744138,0.96,21.069,21.057,10.0]
[1674203744658,0.96,21.069,21.055,30.0]
[1674203744871,0.96,21.069,21.057,20.0]
[1674203745064,17.96,21.069,21.057,20.0]
[1674203745497,17.0,21.069,21.058,10.0]
[1674203745707,1.92,21.068,21.058,10.0]
[1674203747920,17.0,21.069,21.058,10.0]
[1674203748142,17.0,21.071,21.058,10.0]
[1674203748352,1.92,21.07,21.058,10.0]
[1674203749285,11.92,21.07,21.057,30.0]
[1674203749489,17.0,21.069,21.057,30.0]
[1674203749812,17.0,21.069,21.056,120.3895]
[1674203749813,1.92,21.068,21.056,110.3895]
[1674203750029,10.0,21.067,21.054,118.1096]
[1674203750347,10.0,21.065,21.054,118.1096]
[1674203750551,18.92,21.064,21.054,118.1096]
[1674203750753,17.0,21.064,21.054,118.1096]
[1674203751176,0.96,21.063,21.055,10.0]
[1674203752121,17.0,21.064,21.055,10.0]
[1674203752442,35.6,21.071,21.055,10.0]
[1674203752660,20.0,21.07,21.055,10.0]
[1674203753381,35.59,21.073,21.056,19.35185992]
[1674203753576,45.59,21.077,21.061,10.0]
[1674203754651,45.48441099,21.077,21.061,10.0]
[1674203755204,18.92,21.076,21.061,10.0]
[1674203755912,1.92,21.076,21.061,10.0]
[1674203756238,82.80082552,21.081,21.062,0.96]
[1674203756747,82.80082552,21.081,21.062,20.96]
[1674203756975,82.80082552,21.081,21.063,10.0]
[1674203757280,82.80082552,21.081,21.064,20.0]
[1674203757468,47.22082552,21.081,21.065,11.92]
[1674203757688,10.0,21.085,21.066,20.0]
[1674203757887,35.58,21.084,21.066,20.0]
[1674203758098,10.0,21.083,21.066,20.0]
[1674203758314,55.58,21.082,21.061,35.61]
[1674203758539,17.96,21.081,21.056,35.62]
[1674203758748,55.58,21.08,21.056,35.62]
[1674203758977,18.92,21.079,21.056,35.62]
[1674203759150,10.0,21.077,21.056,35.62]
[1674203759364,54.51,21.076,21.056,35.62]
[1674203760511,54.51,21.076,21.061,10.0]
[1674203760848,35.59,21.076,21.061,10.0]
[1674203761055,45.59,21.077,21.061,10.0]
[1674203762119,17.96,21.076,21.061,10.0]
[1674203762300,18.92,21.076,21.061,10.0]
[1674203763705,18.92,21.076,21.059,10.0]
[1674203764006,18.92,21.076,21.054,118.1096]
[1674203764007,35.59,21.075,21.054,118.1096]
[1674203764211,21.92,21.074,21.054,118.1096]
[1674203764404,52.59,21.073,21.054,118.1096]
[1674203764619,52.59,21.073,21.055,10.0]
[1674203764620,10.0,21.071,21.055,10.0]
[1674203764830,37.0,21.07,21.055,10.0]
[1674203765059,1.92,21.069,21.055,10.0]
[1674203766934,35.59,21.073,21.056,0.96]
[1674203767146,57.22082552,21.074,21.055,30.0]
[1674203767356,35.59,21.073,21.056,55.62]
[1674203767571,35.59,21.073,21.057,10.0]
[1674203767783,35.58,21.079,21.06,20.51]
[1674203767998,10.0,21.081,21.062,10.0]
[1674203768196,55.58,21.08,21.062,10.0]
[1674203768622,35.58,21.08,21.063,21.92]
[1674203768838,35.58,21.083,21.064,17.0]
[1674203769049,35.58,21.083,21.066,10.0]
[1674203769248,35.58,21.083,21.067,20.0]
[1674203769461,35.58,21.083,21.068,10.0]
[1674203770512,35.57,21.086,21.069,0.96]
[1674203770715,85.722,21.087,21.069,0.96]
[1674203770936,47.22082552,21.089,21.069,0.96]
[1674203770937,35.57,21.086,21.069,0.96]
[1674203771140,85.722,21.087,21.069,0.96]
[1674203771478,35.57,21.086,21.07,10.0]
[1674203771663,35.57,21.088,21.07,10.0]
[1674203771874,38.92,21.087,21.07,10.0]
[1674203772199,35.57,21.086,21.07,10.0]
[1674203772399,0.96,21.085,21.07,10.0]
[1674203772607,35.58,21.084,21.07,10.0]
[1674203773660,17.96,21.083,21.07,10.0]
[1674203773873,36.54,21.082,21.07,10.0]
[1674203774089,17.96,21.081,21.07,10.0]
[1674203774508,0.96,21.08,21.07,10.0]
[1674203775130,0.96,21.079,21.068,10.0]
[1674203775339,0.96,21.078,21.066,10.0]
[1674203775777,20.96,21.078,21.066,10.0]
[1674203775989,17.0,21.077,21.066,10.0]
[1674203776597,20.96,21.078,21.066,10.0]
[1674203776835,20.0,21.077,21.066,10.0]
[1674203777021,20.0,21.08,21.066,10.0]
[1674203777234,35.58,21.079,21.066,10.0]
[1674203777457,20.0,21.078,21.066,10.0]
[1674203777661,20.0,21.08,21.066,10.0]
[1674203777978,0.96,21.079,21.066,10.0]
[1674203778205,0.96,21.078,21.066,10.0]
[1674203778593,37.96,21.078,21.066,10.0]
[1674203778916,20.0,21.078,21.066,10.0]
[1674203779248,17.0,21.077,21.066,10.0]
[1674203779452,17.0,21.078,21.066,10.0]
[1674203779643,21.92,21.077,21.066,10.0]
[1674203779852,21.92,21.077,21.063,10.0]
[1674203779853,17.0,21.076,21.065,113.3202]
[1674203780274,17.0,21.076,21.066,20.0]
[1674203780490,17.0,21.076,21.067,10.0]
[1674203780919,35.58,21.081,21.067,10.0]
[1674203781237,17.0,21.08,21.067,10.0]
[1674203781651,17.0,21.082,21.067,10.0]
[1674203781864,1.92,21.081,21.067,10.0]
[1674203782400,35.58,21.083,21.07,20.63]
[1674203782596,46.98883218,21.088,21.07,20.63]
[1674203782805,82.1621,21.087,21.071,35.6]
[1674203783137,82.1621,21.087,21.072,10.0]
[1674203783346,46.98883218,21.088,21.072,10.0]
[1674203783531,20.45,21.09,21.067,119.4067]
[1674203783532,129.7796577,21.087,21.067,119.4067]
[1674203783741,129.7796577,21.087,21.067,109.4067]
[1674203783958,10.0,21.086,21.067,109.4067]
[1674203784179,36.53,21.085,21.067,109.4067]
[1674203784377,17.96,21.084,21.065,113.3202]
[1674203784588,10.0,21.082,21.065,113.3202]
[1674203784787,56.54,21.081,21.065,113.3202]
[1674203784999,27.96,21.08,21.065,113.3202]
[1674203785212,10.0,21.078,21.061,45.61]
[1674203785424,37.96,21.077,21.06,116.9753]
[1674203785633,10.0,21.075,21.06,116.9753]
[1674203785845,18.92,21.074,21.06,116.9753]
[1674203787023,10.0,21.073,21.06,116.9753]
[1674203787338,18.92,21.072,21.06,116.9753]
[1674203787647,18.92,21.072,21.055,45.62]
[1674203787867,10.0,21.071,21.055,10.0]
[1674203788065,18.92,21.07,21.055,10.0]
[1674203788275,18.92,21.07,21.056,20.0]
[1674203788494,18.92,21.07,21.057,10.0]
[1674203789105,17.0,21.069,21.057,10.0]
[1674203789424,1.92,21.068,21.057,10.0]
[1674203789635,1.92,21.067,21.057,10.0]
[1674203789831,1.92,21.07,21.056,20.0]
[1674203790273,18.92,21.07,21.057,10.0]
[1674203790477,35.59,21.074,21.057,10.0]
[1674203790689,35.58,21.079,21.059,10.0]
[1674203791111,102.57883218,21.077,21.059,10.0]
[1674203791524,10.0,21.076,21.058,35.62]
[1674203791747,10.0,21.074,21.059,10.0]
[1674203792063,18.92,21.073,21.059,10.0]
[1674203792486,18.92,21.073,21.057,10.0]
[1674203794885,18.92,21.073,21.056,55.62]
[1674203795108,10.0,21.072,21.056,20.0]
[1674203795309,18.92,21.071,21.055,20.0]
[1674203795645,10.0,21.07,21.055,30.0]
[1674203795836,18.92,21.069,21.055,30.0]
[1674203796463,35.59,21.073,21.056,10.0]
[1674203796679,45.59,21.076,21.057,20.0]
[1674203796889,10.0,21.076,21.058,45.62]
[1674203797099,45.59,21.076,21.058,35.62]
[1674203797316,92.57883218,21.076,21.057,20.0]
[1674203797525,116.33460169,21.076,21.057,20.0]
[1674203797732,116.33460169,21.076,21.056,20.0]